[Event "31st Kavala Open-A 2022"]
[Site "Kavala"]
[Date "2022.07.28"]
[Round "4.10"]
[White "Beerdsen, Thomas"]
[Black "Tsaknakis, Zisis"]
[Result "1-0"]
[ECO "B12"]
[WhiteElo "2500"]
[BlackElo "2266"]
[Annotator "TA"]
[PlyCount "93"]
[EventDate "2022.07.27"]
[EventType "swiss"]
[EventCountry "GRE"]
[SourceTitle "playchess.com"]
[Source "ChessBase"]
[SourceQuality "1"]
[TimeControl "40/5400+30:1800+30"]

{[%evp 9,93,0,0,0,0,-6,-2,-11,-14,0,-6,0,-8,-12,31,28,20,0,0,-6,-4,0,108,105,221,206,255,252,262,255,242,259,237,78,489,485,475,470,586,561,535,430,431,424,493,484,496,492,493,459,442,344,401,323,299,283,266,282,274,274,302,300,397,363,404,395,415,404,402,374,389,409,416,395,395,400,475,472,462,462,444,403,385,346,587,537]} 1. e4 {[%emt 0:00:08]} c6 {[%emt 0:01:33]} 2. d4 {[%emt 0:00:08]} d5 {[%emt 0:00:02]} 3. e5 {[%emt 0:00:08]} c5 {[%emt 0:00:13]} 4. Nf3 {[%emt 0:00:17]} cxd4 {[%emt 0:00:06]} 5. Qxd4 {[%emt 0:00:07]} Nc6 {[%emt 0:00:04][%cal Bb8c6,Bc6b4,Bb4d3][%mdl 32]} 6. Qf4 {[%emt 0:00:10] B12: Caro-Kann: Advance Variation.} e6 {[%emt 0:00:02]} 7. Bd3 {[%emt 0:00:23]} Nb4 {[%emt 0:00:02]} 8. Nc3 $1 {[%emt 0:00:48][%mdl 4] The position is equal. now scores much better than the old 8.0-0.} Nxd3+ {[%emt 0:00:16]} 9. cxd3 {[%emt 0:00:09]} Ne7 {[%emt 0:00:02]} 10. Bd2 {[%emt 0:12:26]} Ng6 {[%emt 0:00:53]} 11. Qg3 {[%emt 0:02:48] [#]} b6 $146 {[%emt 0:02:44]} ({Predecessor:} 11... Be7 12. h4 h5 13. Bg5 Bd7 14. O-O Rc8 15. Rac1 O-O 16. Ne2 Bb5 17. Rxc8 Qxc8 18. Bxe7 Nxe7 {1-0 (67) Grischuk,A (2758)-Paszewski,M (2286) Chess.com INT 2022}) 12. h4 {[%emt 0:02:45]} h5 $1 {[%emt 0:01:09]} 13. Rc1 {[%emt 0:07:34] Hoping for Nb5.} Ba6 {[%emt 0:12:36] Inhibits Nb5.} 14. Ng5 $36 {[%emt 0:02:05][%cal Og5e6][%mdl 2048] And now Nxe6! would win. White is more active.} Qd7 {[%emt 0:01:47]} 15. Ne2 {[%emt 0:02:39]} d4 {[%emt 0:12:34]} (15... Be7 $11 {remains equal.}) 16. Nxd4 $16 {[%emt 0:14:12][%cal Og5e6] White is more active.} Bc5 {[%emt 0:16:00] [#]} (16... Qxd4 $2 17. Qf3 Nxe5 18. Qxa8+ Qd8 19. Qxd8+ (19. Qxa7 Nxd3+ 20. Kd1 Nxf2+ 21. Ke1 Nd3+ 22. Kd1 Nf2+ 23. Ke1 Nd3+ 24. Kd1 Nf2+ $11) 19... Kxd8 20. Rh3 $18) (16... Rc8 $16 17. Rxc8+ (17. Ngxe6 Rxc1+ 18. Bxc1 Ne7 $16) 17... Bxc8 18. Ngxe6 Ne7) 17. Ngxe6 $1 $18 {[%emt 0:05:14][%cal Oe1g1][%mdl 512]} Bxd4 {[%emt 0:03:57]} (17... Rc8 18. Nxg7+) 18. Nc7+ {[%emt 0:00:30]} Kf8 {[%emt 0:00:24]} 19. e6 {[%emt 0:03:27]} (19. Nxa8 Bxe5 20. Qh3 (20. Bb4+ $2 Kg8 $19) 20... f5 $11) 19... Qe7 {[%emt 0:07:22][%cal Od4b2] [#]} 20. O-O $1 {[%emt 0:07:43]} (20. Nxa8 $6 Qxe6+ 21. Be3 Be5) 20... Rd8 {[%emt 0:08:33]} 21. Nxa6 $2 {[%emt 0:00:44]} (21. Rfe1 $18 Bxd3 22. exf7) 21... Be5 $2 {[%emt 0:04:15][%mdl 8192] A mistake that costs the game.} (21... Qxe6 $16 {is more resistant.} 22. Qc7 Bf6) 22. Bb4 {[%emt 0:01:34]} Bxg3 {[%emt 0:00:13]} 23. fxg3 {[%emt 0:00:13]} (23. Bxe7+ Kxe7 24. fxg3 fxe6 $16) 23... f6 {[%emt 0:08:57]} 24. Rc7 {[%emt 0:01:02][%mdl 64] Pin} Re8 {[%emt 0:03:58]} 25. Bxe7+ {[%emt 0:02:24]} Rxe7 {[%emt 0:00:09]} 26. Rc6 {[%emt 0:03:44]} Kg8 {[%emt 0:02:56]} 27. Rf5 {[%emt 0:02:35]} (27. d4 Kh7 28. d5 Rd8 $18) 27... Re8 {[%emt 0:00:02] White must now prevent ...Ne7.} 28. Nc7 {[%emt 0:01:54]} Rc8 {[%emt 0:05:44] aiming for ...Ne7.} 29. Rc4 {[%emt 0:04:12]} Ne7 {[%emt 0:02:12]} 30. Rb5 {[%emt 0:02:46]} Rd8 {[%emt 0:00:56]} 31. d4 {[%emt 0:02:57]} g6 {[%emt 0:00:11]} 32. Ra4 {[%emt 0:01:20]} Rh7 {[%emt 0:01:26]} 33. d5 {[%emt 0:07:12]} ({Don't play} 33. Rxa7 Nc8 $18) 33... Nc8 {[%emt 0:01:24] [#]} 34. Na6 {[%emt 0:01:11]} Nd6 {[%emt 0:01:23]} 35. Rb3 {[%emt 0:00:22]} Nb7 {[%emt 0:01:47]} 36. Rd4 {[%emt 0:01:33]} Re7 {[%emt 0:00:31]} 37. Rc3 {[%emt 0:02:52]} Kf8 {[%emt 0:01:30]} 38. Nb4 {[%emt 0:02:14]} Rxe6 {[%emt 0:00:57]} 39. dxe6 {[%emt 0:01:19][%cal Bd5e6,Be6e7,Be7e8][%mdl 32] Intending e7+! and mate.} Rxd4 {[%emt 0:00:02][%mdl 4096] Endgame KRN-KRN} 40. Rc8+ {[%emt 0:00:00]} Rd8 {[%emt 0:00:00]} 41. Rc7 {[%emt 0:01:02] Strongly threatening e7+.} Rd1+ {[%emt 0:01:35]} 42. Kh2 {[%emt 0:02:00]} Nc5 {[%emt 0:16:27]} 43. e7+ {[%emt 0:02:03]} ({Less strong is} 43. Rf7+ Kg8 44. Rxf6 Kg7 45. Rf7+ Kg8 $18) 43... Kf7 {[%emt 0:00:36]} 44. Nc6 {[%emt 0:00:15] Rc8 is the strong threat.} Nd7 {[%emt 0:07:51]} 45. Rc8 {[%emt 0:02:33]} Re1 {[%emt 0:00:03]} 46. Rd8 {[%emt 0:01:08]} Re6 $2 {[%emt 0:01:56]} (46... Rxe7 47. b4 Ne5 48. Nxe7 Kxe7) 47. e8=B+ {[%emt 0:00:34] Weighted Error Value: White=0.13 (very precise) /Black=0.40} 1-0

[Event "31st Kavala Open-A 2022"]
[Site "Kavala"]
[Date "2022.07.28"]
[Round "4.11"]
[White "Bharath Subramaniyam H"]
[Black "Michalicka, Milan"]
[Result "1-0"]
[ECO "E71"]
[WhiteElo "2479"]
[BlackElo "2216"]
[Annotator "TA"]
[PlyCount "81"]
[EventDate "2022.07.27"]
[EventType "swiss"]
[EventCountry "GRE"]
[SourceTitle "playchess.com"]
[Source "ChessBase"]
[SourceQuality "1"]
[TimeControl "40/5400+30:1800+30"]

{[%evp 13,81,35,51,47,46,31,52,35,52,48,119,133,150,142,142,113,130,119,139,111,125,110,125,90,114,-23,114,102,114,101,136,126,104,54,134,135,140,144,153,149,152,145,142,148,162,148,151,157,168,149,156,179,195,170,195,199,227,171,338,294,306,232,285,241,251,239,5710,4077,2106,1680]} 1. d4 {[%emt 0:00:16]} Nf6 {[%emt 0:00:13]} 2. c4 {[%emt 0:03:08]} g6 {[%emt 0:00:14]} 3. Nc3 {[%emt 0:00:08]} Bg7 {[%emt 0:00:14]} 4. e4 {[%emt 0:00:08]} d6 {[%emt 0:00:15]} 5. h3 {[%emt 0:02:40]} O-O {[%emt 0:00:35]} 6. Be3 {[%emt 0:01:43]} e5 {[%emt 0:01:13]} 7. d5 {[%emt 0:01:44]} a5 {[%emt 0:01:46]} 8. g4 {[%emt 0:02:14] E71: King's Indian: 4 e4 d6 5 h3.} c6 {[%emt 0:02:06]} 9. Qd2 {[%emt 0:05:02]} cxd5 {[%emt 0:02:32]} 10. cxd5 {[%emt 0:00:13] [#] White is slightly better.} a4 $146 {[%emt 0:04:25]} ({Predecessor:} 10... Na6 11. Nge2 Nc5 12. f3 a4 13. Ng3 Qa5 14. h4 Bd7 15. h5 b5 16. h6 Bh8 {½-½ (31) Bukala,W (1875)-Czechowski,J (2016) Krakow 2021}) 11. f3 {[%emt 0:04:05]} Qa5 {[%emt 0:04:11]} (11... a3 $14) 12. Nb5 $16 {[%emt 0:03:12]} Qd8 {[%emt 0:13:23]} 13. Ne2 {[%emt 0:03:49]} Na6 {[%emt 0:06:22]} 14. Ng3 {[%emt 0:03:41]} Ne8 {[%emt 0:02:38]} 15. h4 {[%emt 0:12:36]} f5 {[%emt 0:02:05]} 16. gxf5 {[%emt 0:02:03]} gxf5 {[%emt 0:00:20]} 17. exf5 {[%emt 0:00:15]} (17. Bg5 Qb6) 17... Bxf5 {[%emt 0:07:22]} 18. h5 {[%emt 0:01:47]} Bd7 {[%emt 0:02:14]} 19. h6 {[%emt 0:01:33]} ({White should try} 19. Ne4 $16) 19... Bf6 {[%emt 0:00:38]} (19... Rxf3 $11 20. Rg1 {[#]} (20. hxg7 Rxg3 21. Nc3 Nb4 $15) 20... Qh4 $1) 20. O-O-O {[%emt 0:06:25] 0x0.00207beaede5dp-1022s more active pieces.} Nc5 {[%emt 0:07:03]} 21. Ne4 {[%emt 0:12:23]} Nxe4 {[%emt 0:01:02]} 22. fxe4 {[%emt 0:02:42]} Kh8 {[%emt 0:00:53]} 23. Bd3 {[%emt 0:05:29]} (23. Rg1 $16) 23... Bxb5 {[%emt 0:04:17]} (23... Be7 $1 $14) 24. Bxb5 {[%emt 0:00:02]} Nc7 {[%emt 0:00:14][%cal Be8c7,Bc7a6,Ba6c5][%mdl 32]} 25. Bd3 {[%emt 0:02:01][%cal Bb5d3,Bd3c2,Bc2d1,Bd1g4,Bg4e6][%mdl 32]} a3 {[%emt 0:00:56]} 26. b3 {[%emt 0:00:43]} Na6 {[%emt 0:02:01]} 27. Rdf1 {[%emt 0:06:15]} Nc5 {[%emt 0:01:45]} 28. Bc2 {[%emt 0:03:33]} Rg8 {[%emt 0:08:22]} 29. Rhg1 {[%emt 0:02:12] Inhibits Bg5. Strongly threatening Rxg8+.} Qe7 {[%emt 0:02:56]} 30. Kb1 {[%emt 0:00:20]} Rg6 {[%emt 0:02:05]} 31. Qf2 {[%emt 0:06:44]} Nd7 {[%emt 0:03:12]} 32. Bd1 {[%emt 0:00:46]} Rag8 {[%emt 0:06:13]} 33. Rxg6 {[%emt 0:00:58]} hxg6 {[%emt 0:03:11]} 34. Qg2 {[%emt 0:01:16] Against Bg5} (34. Bg4 Rf8 $16) 34... Kh7 {[%emt 0:04:28]} 35. Bg4 {[%emt 0:00:51]} Rd8 {[%emt 0:04:15]} (35... Bg5 $2 36. Be6 Rf8 37. Rxf8 (37. Bxg5 Rxf1+ 38. Qxf1 Qxg5 $11) 37... Qxf8 38. Bxg5 $18) (35... Rf8) 36. Rg1 {[%emt 0:02:34] [#] Black must now prevent Bxd7.} Nf8 {[%emt 0:01:29]} 37. Qf3 {[%emt 0:00:18]} Nd7 {[%emt 0:01:16]} 38. Be6 {[%emt 0:00:34][%cal Og1g6] Threatens to win with Rxg6! A strong pair of Bishops.} Nf8 {[%emt 0:00:25]} 39. Rf1 {[%emt 0:01:03]} Bg5 {[%emt 0:00:37]} (39... Nxe6 40. dxe6 (40. Qxf6 Qxf6 41. Rxf6 Nf4 $11) 40... Rf8) 40. Bxg5 $18 {[%emt 0:00:00]} Qxg5 {[%emt 0:00:00]} 41. Qf7+ {[%emt 0:02:53] Weighted Error Value: White=0.21 (precise) /Black=0.27 (precise)} ({And not} 41. Qf6 Qxf6 42. Rxf6 Nxe6 43. dxe6 Re8 $17) 1-0

[Event "31st Kavala Open-A 2022"]
[Site "Kavala"]
[Date "2022.07.28"]
[Round "4.12"]
[White "Pijpers, Arthur"]
[Black "Kazantzoglou, Stefanos"]
[Result "1-0"]
[ECO "C78"]
[WhiteElo "2458"]
[BlackElo "1676"]
[Annotator "TA"]
[PlyCount "103"]
[EventDate "2022.07.27"]
[EventType "swiss"]
[EventCountry "GRE"]
[SourceTitle "playchess.com"]
[Source "ChessBase"]
[SourceQuality "1"]
[TimeControl "40/5400+30:1800+30"]

{[%evp 27,103,43,40,37,84,85,83,87,113,79,77,36,50,37,41,29,18,33,33,19,57,6,6,-17,-7,-52,0,-31,0,0,0,0,110,114,302,294,277,302,295,0,262,294,348,175,188,180,216,189,343,204,205,191,335,327,322,311,309,289,581,589,716,152,143,133,1285,1270,29982,29983,29983,29984,29987,29988,29988,29989,29990,278,29991,29992]} 1. e4 {[%emt 0:00:01]} e5 {[%emt 0:01:09]} 2. Nf3 {[%emt 0:00:07]} Nc6 {[%emt 0:00:05]} 3. Bb5 {[%emt 0:00:04]} a6 {[%emt 0:00:07]} 4. Ba4 {[%emt 0:00:05]} Nf6 {[%emt 0:00:19]} 5. O-O {[%emt 0:00:07]} b5 {[%emt 0:00:12]} 6. Bb3 {[%emt 0:00:06]} Bc5 {[%emt 0:00:13]} 7. a4 {[%emt 0:00:05]} Bb7 {[%emt 0:01:46]} 8. c3 {[%emt 0:03:34]} d6 {[%emt 0:02:40]} 9. d4 {[%emt 0:00:09]} Bb6 {[%emt 0:02:20]} 10. Re1 {[%emt 0:00:06]} O-O {[%emt 0:01:59]} 11. Bg5 {[%emt 0:00:06]} h6 {[%emt 0:01:55]} 12. Bh4 {[%emt 0:00:04]} Re8 {[%emt 0:02:11]} 13. axb5 {[%emt 0:16:34]} axb5 {[%emt 0:00:22]} 14. Rxa8 {[%emt 0:00:02]} Bxa8 {[%emt 0:02:23]} 15. d5 {[%emt 0:00:44] C78: Ruy Lopez: Archangelsk and Möller Defences.} Nb8 {[%emt 0:05:29]} (15... g5 $14) 16. Bxf6 $16 {[%emt 0:06:20]} Qxf6 {[%emt 0:01:21]} 17. Na3 {[%emt 0:00:05] [#] White is better.} g5 $146 {[%emt 0:00:30]} ({Predecessor:} 17... Nd7 18. Nxb5 Nf8 19. Na3 Rb8 20. Nc4 Bc5 21. Ba4 Ng6 22. b4 Ba7 23. Bc6 Bxc6 24. dxc6 {1-0 (111) Alekseenko,K (2637)-Pogonina,N (2465) Caleta 2019}) 18. Qe2 {[%emt 0:03:38]} (18. Nxb5 g4 19. Nfd4 exd4 20. Qxg4+ Kh8 21. Nxd4 Bb7 $17) 18... c6 {[%emt 0:02:31]} 19. Nd2 {[%emt 0:04:14]} Na6 {[%emt 0:08:21]} 20. dxc6 {[%emt 0:13:15]} Bxc6 {[%emt 0:01:10]} 21. Rf1 {[%emt 0:00:46]} Nc7 {[%emt 0:04:30]} 22. Nc2 {[%emt 0:02:31]} Bc5 {[%emt 0:12:42]} 23. Ne3 {[%emt 0:00:40]} Rb8 {[%emt 0:06:36]} 24. Qh5 {[%emt 0:20:54]} (24. Nd5 $14 Bxd5 25. exd5) 24... Bd7 $11 {[%emt 0:03:21]} 25. h4 {[%emt 0:07:24]} b4 {[%emt 0:08:08]} 26. Bc4 {[%emt 0:00:01]} bxc3 {[%emt 0:00:38]} ({Black should play} 26... gxh4 $15 27. Nf3 bxc3 28. bxc3 h3) 27. bxc3 {[%emt 0:00:02]} Rb2 {[%emt 0:02:26]} 28. hxg5 {[%emt 0:07:33]} hxg5 {[%emt 0:00:14]} 29. Nf3 {[%emt 0:00:02]} Be6 {[%emt 0:04:54] [#]} (29... Kg7 $11 {keeps the balance.}) 30. Bxe6 $1 $40 {[%emt 0:02:45][%mdl 128] White goes for the king.} ({Of course not} 30. Nxg5 Bxc4 31. Nh7 (31. Nxc4 $2 Rxf2 32. Rxf2 Qxf2+ 33. Kh2 Qg1+ 34. Kg3 Qe1+ 35. Kh2 Bg1+ 36. Kh3 Qxc3+ 37. Nf3 Qxc4 $19) 31... Qg6 32. Qxg6+ fxg6 $15) ({Weaker is} 30. Qxg5+ Qxg5 31. Nxg5 Bxc4 32. Nxc4 Rc2 $15) 30... Nxe6 {[%emt 0:01:07]} (30... Bxe3 $16 31. Bf5 Bb6) 31. Nd5 $18 {[%emt 0:01:44]} Qg7 {[%emt 0:01:25]} 32. Ra1 {[%emt 0:03:15]} Rb8 {[%emt 0:03:27] Prevents Ra8.} (32... Bxf2+ $2 33. Kf1 Rb8 34. Kxf2 $18) 33. Ne7+ {[%emt 0:01:17] Pair of Knights!} Kf8 {[%emt 0:00:08]} 34. Nf5 {[%emt 0:00:02]} Qf6 {[%emt 0:08:51]} 35. g3 {[%emt 0:01:10] Against Nf4} (35. Nh2 $142 {aiming for Ng4.} Qg6 36. Qh3) 35... Ke8 {[%emt 0:01:42] [#]} 36. Nh2 $1 {[%emt 0:01:17] Threatens to win with Ng4.} Kd7 {[%emt 0:01:30]} 37. Qd1 {[%emt 0:01:07] And now Ng4 would win.} Qh8 $2 {[%emt 0:02:28]} (37... Nc7 38. Ng4 Qe6) 38. Kg2 {[%emt 0:04:40]} (38. Ng4 $142) 38... Ra8 {[%emt 0:03:50] Prevents Ra7+.} 39. Rb1 {[%emt 0:01:33]} Ra2 {[%emt 0:01:53]} (39... Rb8 {is a better defense.} 40. Rxb8 Qxb8) 40. Ng4 {[%emt 0:00:00] Chess con chili.} Qa8 {[%emt 0:00:00] Against Rb7+} 41. Qd3 {[%emt 0:06:47]} Kc7 {[%emt 0:03:54][%cal Oa2d2]} 42. Ne7 {[%emt 0:00:31] Nd5+ is the strong threat.} Kd7 $2 {[%emt 0:03:55]} (42... Qa4 {was called for.} 43. Nd5+ Kc8) 43. Nd5 {[%emt 0:00:38] Strongly threatening Qb5+.} Nc7 {[%emt 0:11:43] Inhibits Qb5+.} 44. Nxc7 {[%emt 0:09:08]} (44. Nb6+ $18 Bxb6 45. Rxb6) 44... Kxc7 $16 {[%emt 0:00:06]} 45. Qc4 {[%emt 0:00:03]} Kc8 $2 {[%emt 0:01:04][%mdl 8192]} (45... Kd8 $16) 46. Rh1 $18 {[%emt 0:00:25] Threatening mate with Rh8+.} Qa4 {[%emt 0:02:26]} 47. Rh8+ {[%emt 0:01:21]} Kc7 {[%emt 0:00:04]} 48. Qxf7+ {[%emt 0:00:06]} Kc6 {[%emt 0:00:45]} 49. Qd5+ {[%emt 0:06:00]} Kc7 {[%emt 0:01:33]} 50. Rh7+ {[%emt 0:00:23]} Kb6 {[%emt 0:00:05]} 51. Qb7+ {[%emt 0:00:06]} Ka5 {[%emt 0:00:10]} 52. Rh8 {[%emt 0:00:17] Weighted Error Value: White=0.32/Black=0.58} 1-0

[Event "31st Kavala Open-A 2022"]
[Site "Kavala"]
[Date "2022.07.28"]
[Round "4.13"]
[White "Charkhalashvili, Inga"]
[Black "Zawadzka, Jolanta"]
[Result "1-0"]
[ECO "D02"]
[WhiteElo "2276"]
[BlackElo "2416"]
[Annotator "TA"]
[PlyCount "113"]
[EventDate "2022.07.27"]
[EventType "swiss"]
[EventCountry "GRE"]
[SourceTitle "playchess.com"]
[Source "ChessBase"]
[SourceQuality "1"]
[TimeControl "40/5400+30:1800+30"]

{[%evp 15,113,-29,-16,-20,0,-4,-15,-10,-10,-8,0,0,0,0,0,0,0,-7,0,-17,-18,-34,-11,-30,-30,-40,-22,-38,-36,-36,-21,-20,-24,-47,0,-27,13,-11,59,6,2,-14,41,-50,25,22,23,23,25,0,0,-29,-29,-99,-81,-73,-73,-109,-57,-111,-111,-110,-97,-106,-97,-97,-97,-97,-100,-117,-26,-30,-30,-41,-13,-14,-29,-31,0,-18,0,0,110,103,1330,0,0,0,0,0,0,0,0,0,0,0,1410,1336,29997,29998]} 1. d4 {[%emt 0:00:04]} d5 {[%emt 0:00:26]} 2. Nf3 {[%emt 0:00:06]} Nf6 {[%emt 0:00:03]} 3. Bf4 {[%emt 0:00:06]} c5 {[%emt 0:00:12]} 4. e3 {[%emt 0:01:48]} Nc6 {[%emt 0:00:10]} 5. c3 {[%emt 0:00:06]} Qb6 {[%emt 0:00:17]} 6. Qb3 {[%emt 0:00:53]} c4 {[%emt 0:00:30]} 7. Qc2 $1 {[%emt 0:03:16] 7.Qc2 is better than 7.Qxb6.} Bf5 {[%emt 0:00:21]} 8. Qc1 {[%emt 0:01:31]} e6 {[%emt 0:00:22]} 9. Be2 {[%emt 0:00:10] D02: 1 d4 d5 2 Nf3 sidelines, including 2...Nf6 3 g3 and 2...Nf6 3 Bf4.} h6 {[%emt 0:02:02]} 10. Nbd2 {[%emt 0:00:38]} Be7 {[%emt 0:02:35]} 11. O-O {[%emt 0:02:00] The position is equal.} O-O {[%emt 0:01:52]} 12. b3 {[%emt 0:02:41]} cxb3 {[%emt 0:04:57]} 13. axb3 {[%emt 0:00:11]} Nh5 {[%emt 0:04:52] [#]} 14. Be5 $146 {[%emt 0:06:41]} ({Predecessor:} 14. Bg3 Nxg3 15. hxg3 Rfc8 16. Qb2 Bf6 17. b4 Bh7 18. Ra3 Rc7 19. Rfa1 Rac8 20. Bf1 {0-1 (81) Marcos,M (2147)-Illingworth,M (2458) Abu Dhabi 2016}) 14... f6 {[%emt 0:01:04]} 15. Bg3 {[%emt 0:02:37]} Nxg3 {[%emt 0:02:35]} 16. hxg3 {[%emt 0:00:35]} Rfc8 {[%emt 0:00:18][%cal Oc6b4]} 17. Qb2 {[%emt 0:01:02]} a5 {[%emt 0:12:52][%cal Oa5a4]} 18. Ra4 {[%emt 0:01:42]} Bg6 {[%emt 0:04:32]} 19. Rfa1 {[%emt 0:01:02][%cal Ob3b4]} Qc7 {[%emt 0:11:32]} 20. Nb1 {[%emt 0:09:54]} Nd8 {[%emt 0:04:20]} 21. Nfd2 {[%emt 0:06:23][%cal Bf3d2,Bd2b3,Bb3c5][%mdl 32]} Be8 {[%emt 0:03:13]} 22. R4a2 {[%emt 0:00:07]} b5 {[%emt 0:00:12]} 23. b4 {[%emt 0:01:29]} a4 {[%emt 0:10:02]} 24. Nb3 {[%emt 0:01:11]} Bd6 {[%emt 0:02:21]} 25. Nc5 {[%emt 0:00:43]} Qb6 {[%emt 0:05:05]} 26. Nd2 {[%emt 0:04:29]} Bb8 {[%emt 0:01:11]} (26... e5 $11) 27. Bf3 {[%emt 0:01:21]} (27. e4 $14) 27... Ra7 $11 {[%emt 0:01:12]} 28. Qb1 {[%emt 0:01:41]} Re7 {[%emt 0:04:39]} ({Better is} 28... Nf7 $11) 29. Qd3 {[%emt 0:02:05]} (29. e4 $1 $14) 29... Qd6 {[%emt 0:02:11]} (29... Nf7 $15) 30. e4 $1 {[%emt 0:02:32] Hoping for exd5.} Nf7 $1 {[%emt 0:03:45]} 31. exd5 {[%emt 0:02:30]} exd5 {[%emt 0:00:09]} 32. Bh5 {[%emt 0:02:41]} Qc6 {[%emt 0:01:37]} 33. Bxf7+ {[%emt 0:05:36]} (33. Bg4 $5 {[%cal Rg4c8]}) 33... Bxf7 {[%emt 0:00:18]} 34. Nf3 {[%emt 0:01:34]} (34. Nb1 $11) 34... Qe8 {[%emt 0:01:44]} 35. Nh4 {[%emt 0:01:48]} g6 {[%emt 0:02:48][%cal Bg7g6,Bg6g5,Bg5g4][%mdl 32] Prevents Nf5.} 36. Nf3 {[%emt 0:07:15]} Kg7 {[%emt 0:03:42]} (36... g5 $1 $17) 37. Nd2 {[%emt 0:04:51]} (37. Kf1 $15) 37... g5 $17 {[%emt 0:01:13]} 38. Qf3 {[%emt 0:02:45]} h5 {[%emt 0:06:22]} 39. Nf1 {[%emt 0:03:15]} g4 {[%emt 0:00:00]} 40. Qd1 {[%emt 0:00:00]} Bg6 {[%emt 0:00:00]} 41. Qd2 {[%emt 0:02:47]} Rd8 {[%emt 0:08:30]} 42. Rc1 {[%emt 0:05:21]} Qc6 {[%emt 0:05:44]} (42... Bd6 $17) 43. Re1 $11 {[%emt 0:04:32]} Rde8 {[%emt 0:00:17]} 44. Re3 {[%emt 0:00:53]} Kf7 {[%emt 0:04:54]} 45. Ra1 {[%emt 0:00:59]} Rxe3 {[%emt 0:00:22]} 46. Nxe3 {[%emt 0:00:35]} Qd6 {[%emt 0:03:10][%cal Oh5h4]} 47. Qa2 {[%emt 0:11:16]} Rxe3 {[%emt 0:00:42]} 48. fxe3 {[%emt 0:00:05]} Qxg3 {[%emt 0:00:13]} (48... Kg7 $11 {keeps the balance.}) 49. Qxd5+ $16 {[%emt 0:06:24]} Kg7 $2 {[%emt 0:00:04][%mdl 8192] [#]} (49... Kf8 $16) 50. Kf1 $2 {[%emt 0:03:37]} ({Only move:} 50. Ne6+ $1 $18 Kh6 51. Qd7 Qh2+ 52. Kf1 (52. Kf2 $2 Bg3+ 53. Ke2 Qxg2+ 54. Kd1 Qc2#) 52... Bd3+ 53. Ke1) 50... Qxe3 $11 {[%emt 0:04:31] ( -> ...Bg3)} 51. Re1 $1 $36 {[%emt 0:04:06][%mdl 2048] White has some pressure.} (51. Qb7+ Kh6 52. Re1 (52. Qxb8 g3 $17) 52... Bd3+ 53. Nxd3 Qxd3+ 54. Kg1 Qxc3 $15) 51... Qf4+ {[%emt 0:01:04]} 52. Ke2 {[%emt 0:01:05]} Qg3 {[%emt 0:00:14]} 53. Rf1 {[%emt 0:04:06] Strongly threatening Qb7+. Dancing on a razor blade.} Bd6 {[%emt 0:06:20] Threatens to win with ...Bxc5. A strong pair of Bishops.} 54. Qb7+ {[%emt 0:03:36]} Kh6 {[%emt 0:00:53] aiming for ...Bxc5.} 55. Rxf6 {[%emt 0:01:40] Qe4 is the strong threat. Active counter play!} Kg5 $2 {[%emt 0:01:46][%mdl 8192] [#]} (55... Bxc5 56. Qe4) (55... Qxc3 $11 56. Qe4 (56. Rxd6 Qb2+ 57. Kf1 Qc1+ 58. Ke2 Qb2+ 59. Kf1 Qc1+ 60. Ke2 Qb2+ $11) 56... Qb2+ 57. Kf1 (57. Kd1 Qa1+ 58. Ke2 Qb2+ 59. Kf1 Qa1+ 60. Kf2 Qb2+ 61. Kf1 Qa1+ 62. Kf2 Qb2+ 63. Kf1 $11) 57... Qa1+ 58. Kf2 (58. Ke2 Qb2+ 59. Kf1 Qc1+ 60. Ke2 Qb2+ $11) 58... Qb2+ 59. Kf1 Qa1+ 60. Kf2 (60. Ke2 Qb2+ 61. Kf1 $11) 60... Qb2+ 61. Kf1) 56. Re6 $1 $18 {[%emt 0:01:39] Intending Ne4+ and mate.} Bf5 {[%emt 0:01:35]} 57. Qg7+ {[%emt 0:00:32] Weighted Error Value: White=0.33/Black=0.37} 1-0